bitfinex/quotes_BTCUSD_20251209
["timestamp","ask_amount","ask_price","bid_price","bid_amount"]
[1765290964576,0.0004,90540.0,90534.0,0.72742209]
[1765290965079,0.0004,90540.0,90534.0,0.3384191]
[1765290965305,0.01144484,90540.0,90534.0,0.007]
[1765290965524,0.01144484,90540.0,90534.0,0.003]
[1765290965525,0.51331191,90535.0,90534.0,0.003]
[1765290965728,1.39620499,90535.0,90534.0,0.00445638]
[1765290965932,1.39620499,90535.0,90534.0,0.003]
[1765290965933,1.58126472,90535.0,90534.0,0.003]
[1765290966143,0.80215943,90535.0,90534.0,0.003]
[1765290966359,0.80215943,90535.0,90524.0,0.01104679]
[1765290966360,0.01104618,90529.0,90524.0,0.01104679]
[1765290966555,0.01200839,90535.0,90524.0,0.01104679]
[1765290966556,0.00161287,90525.0,90524.0,0.00038585]
[1765290966959,0.22091385,90534.0,90526.0,0.01104655]
[1765290966960,0.22091728,90532.0,90526.0,0.01104655]
[1765290967289,0.01772,90525.0,90524.0,0.00038585]
[1765290967490,0.01933287,90525.0,90524.0,0.00038585]
[1765290967695,0.0296471,90525.0,90524.0,0.00038585]
[1765290968049,0.0119271,90525.0,90524.0,0.00038585]
[1765290968251,0.00161287,90525.0,90524.0,0.00038585]
[1765290968643,0.01872,90525.0,90524.0,0.00038585]
[1765290968838,0.005,90525.0,90524.0,0.0014519]
[1765290969044,9e-05,90535.0,90534.0,0.22091148]
[1765290969242,9e-05,90535.0,90534.0,0.24301148]
[1765290969485,9e-05,90535.0,90534.0,0.26951321]
[1765290969979,0.23195949,90534.0,90525.0,0.23092801]
[1765290970158,0.23195949,90534.0,90520.0,0.02953871]
[1765290970159,0.01104642,90527.0,90520.0,0.2319915]
[1765290970521,0.01104642,90527.0,90510.0,0.03938027]
[1765290970522,0.22093216,90526.0,90512.0,0.02953871]
[1765290970650,0.22254503,90526.0,90519.0,0.0110474]
[1765290970849,0.22254503,90526.0,90509.0,0.0221]
[1765290971078,0.22254503,90526.0,90485.0,0.07911041]
[1765290971079,0.00161287,90525.0,90504.0,0.01104923]
[1765290971429,0.00161287,90525.0,90501.0,0.0110496]
[1765290971430,0.00161287,90525.0,90511.0,0.01104838]
[1765290971635,0.01933287,90525.0,90505.0,0.00106913]
[1765290971814,0.01933287,90525.0,90508.0,0.01104874]
[1765290972014,0.31003287,90525.0,90508.0,0.23420061]
[1765290972374,0.31003287,90525.0,90496.0,0.02953871]
[1765290972375,0.42054049,90525.0,90496.0,0.02953871]
[1765290972575,0.34237143,90525.0,90497.0,0.00108446]
[1765290972717,0.32034775,90525.0,90505.0,0.22098124]
[1765290972920,0.32134775,90525.0,90502.0,0.01104947]
[1765290973144,0.32634775,90525.0,90503.0,0.01214563]
[1765290973343,0.31003287,90525.0,90508.0,0.01104874]
[1765290973614,0.31003287,90525.0,90516.0,0.01104777]
[1765290973615,0.00161287,90525.0,90516.0,0.01104777]
[1765290973818,0.2504,90540.0,90535.0,0.35322299]
[1765290973819,1e-08,90536.0,90535.0,0.35322299]
[1765290973956,4.008e-05,90575.0,90554.0,0.59618567]
[1765290974140,4.008e-05,90575.0,90559.0,0.59617348]
[1765290974339,4.008e-05,90575.0,90569.0,0.5961491]
[1765290974777,4.008e-05,90575.0,90574.0,0.58403148]
[1765290975046,0.0004,90610.0,90579.0,0.59612472]
[1765290975208,0.0004,90610.0,90589.0,0.58399491]
[1765290975354,1e-08,90590.0,90589.0,0.60175491]
[1765290975810,0.0004,90610.0,90589.0,0.60175491]
[1765290975811,1e-08,90600.0,90599.0,0.59607597]
[1765290976569,1e-08,90600.0,90599.0,0.63523845]
[1765290976771,1e-08,90600.0,90599.0,0.70658359]
[1765290977175,0.0004,90610.0,90609.0,0.22072862]
[1765290977437,1e-08,90610.0,90609.0,0.60170618]
[1765290978783,1e-08,90610.0,90609.0,0.54418319]
[1765290979024,1e-08,90610.0,90609.0,0.23572319]
[1765290979199,1e-08,90610.0,90609.0,0.30564954]
[1765290979384,1e-08,90610.0,90609.0,0.30064954]
[1765290979602,1e-08,90610.0,90609.0,0.30564954]
[1765290979821,0.0031968,90610.0,90609.0,0.37517253]
[1765290980358,0.0021968,90610.0,90609.0,0.30564954]
[1765290980553,0.0021968,90610.0,90609.0,0.31164954]
[1765290980755,0.0021968,90610.0,90609.0,0.23172862]
[1765290980929,0.0021968,90610.0,90609.0,0.22672862]
[1765290981298,0.0004,90620.0,90617.0,0.01103545]
[1765290981538,0.0004,90620.0,90619.0,0.51140426]
[1765290981539,0.00078523,90620.0,90619.0,0.51140426]
[1765290981753,0.00078523,90620.0,90619.0,0.63320354]
[1765290982572,0.00078523,90620.0,90619.0,0.32040354]
[1765290982778,0.00078523,90620.0,90619.0,0.22270426]
[1765290983143,0.00078523,90620.0,90619.0,0.22070426]
[1765290983545,0.00078523,90620.0,90619.0,0.22570426]
[1765290983761,0.00078523,90620.0,90619.0,0.22070426]
[1765290984127,0.00078523,90620.0,90619.0,0.22370426]
[1765290984282,0.00078523,90620.0,90619.0,0.29242354]
[1765290984451,0.00078523,90620.0,90619.0,0.28942354]
[1765290984853,0.00078523,90620.0,90619.0,0.29142354]
[1765290985316,0.00078523,90620.0,90619.0,0.07271928]
[1765290985526,0.00078523,90620.0,90619.0,0.002]
[1765290985725,0.00078523,90620.0,90603.0,0.01103716]
[1765290985726,0.01103606,90612.0,90603.0,0.01103716]
[1765290985919,0.00161287,90612.0,90611.0,0.01103618]
[1765290986215,0.00161287,90612.0,90610.0,0.23176033]
[1765290986376,0.00078523,90620.0,90619.0,0.22070426]
[1765290986576,0.00078523,90620.0,90619.0,0.24480426]
[1765290986777,0.00078523,90620.0,90619.0,0.24280426]
[1765290987661,0.00078523,90620.0,90619.0,0.22270426]
[1765290987820,0.00078523,90620.0,90619.0,0.31342392]
[1765290988027,0.00078523,90620.0,90619.0,0.31142392]
[1765290988584,0.00078523,90620.0,90619.0,0.002]
[1765290988585,0.22309993,90620.0,90619.0,0.002]
[1765290988763,0.2317622,90611.0,90606.0,0.22073463]
[1765290989062,0.2317622,90611.0,90604.0,0.23177696]
[1765290989063,0.01103716,90603.0,90598.0,0.01103777]
[1765290989210,0.01103679,90606.0,90600.0,0.01103752]
[1765290989414,0.00161287,90611.0,90607.0,0.01103667]
[1765290989613,0.00161287,90611.0,90609.0,0.22072765]
[1765290989968,0.00161287,90611.0,90609.0,0.22072793]
[1765290990186,0.00161287,90611.0,90608.0,0.01103655]
[1765290990390,0.00161287,90611.0,90608.0,0.23176695]
[1765290990595,0.00161287,90611.0,90609.0,0.22072761]
[1765290991274,0.00078523,90620.0,90618.0,0.2207067]
[1765290991496,0.00078523,90620.0,90618.0,0.22070609]
[1765290991672,0.00078523,90620.0,90618.0,0.26815937]
[1765290991870,0.00078523,90620.0,90617.0,0.23174193]
[1765290991871,0.00078523,90620.0,90614.0,0.022088]
[1765290991872,0.00178522,90620.0,90614.0,0.022088]
[1765290992227,0.00178522,90620.0,90584.0,0.01772]
[1765290992228,0.01103521,90619.0,90612.0,0.01103606]
[1765290992384,0.00078523,90620.0,90617.0,0.01103545]
[1765290992774,0.00078523,90620.0,90618.0,0.22070589]
[1765290992981,0.00078523,90620.0,90619.0,0.0485555]
[1765290993410,0.00078523,90620.0,90617.0,0.2538299]
[1765290993411,0.01850523,90620.0,90617.0,0.01103545]
[1765290993605,0.01950523,90620.0,90617.0,0.22070854]
[1765290993969,0.01950523,90620.0,90586.0,0.44156543]
[1765290993970,0.01103655,90608.0,90599.0,0.01103764]
[1765290994191,0.00099999,90610.0,90572.0,0.2907]
[1765290994192,0.01103704,90604.0,90574.0,0.01772]
[1765290994406,0.22073896,90605.0,90600.0,0.23178778]
[1765290994407,0.01772,90603.0,90600.0,0.23178778]
[1765290994617,0.01772,90603.0,90601.0,0.22074708]
[1765290994823,0.01772,90603.0,90600.0,0.01103752]
[1765290995055,0.01933287,90603.0,90600.0,0.01103752]
[1765290995249,0.01933287,90603.0,90582.0,0.33118961]
[1765290995250,0.01933287,90603.0,90586.0,0.01103923]
[1765290995251,0.01103825,90594.0,90586.0,0.01103923]
[1765290995469,0.01103825,90594.0,90583.0,0.2318312]
[1765290995470,0.00099999,90590.0,90583.0,0.01103959]
[1765290995675,0.00099999,90590.0,90587.0,0.01103911]
[1765290995892,0.00161287,90594.0,90592.0,0.22076963]
[1765290996099,0.00161287,90594.0,90591.0,0.01103862]
[1765290996272,0.00161287,90594.0,90592.0,0.22076955]
[1765290996488,0.01265112,90594.0,90591.0,0.04967465]
[1765290996713,0.01265112,90594.0,90589.0,0.01103886]
[1765290996896,0.01103874,90590.0,90587.0,0.001]
[1765290997113,0.2207778,90589.0,90587.0,0.001]
[1765290997322,0.2207778,90589.0,90586.0,0.001]
[1765290997323,0.22078223,90587.0,90586.0,0.001]
[1765290997527,0.2223951,90587.0,90586.0,0.00111566]
[1765290997735,0.2223951,90587.0,90586.0,0.00011566]
[1765290998139,0.00161287,90587.0,90586.0,0.00011566]
[1765290998780,0.00161287,90587.0,90586.0,0.02441484]
[1765290998992,0.00161287,90587.0,90586.0,0.02541484]
[1765290999205,0.01933287,90587.0,90586.0,0.00211566]
[1765290999417,0.01933287,90587.0,90586.0,0.00111566]
[1765290999835,0.01933287,90587.0,90586.0,0.00211566]
[1765291000036,0.01933287,90587.0,90586.0,0.00111566]
[1765291000244,0.01933287,90587.0,90586.0,0.00011566]
[1765291000245,0.31003287,90587.0,90586.0,0.00011566]
[1765291000416,0.31003287,90587.0,90586.0,0.00111566]
[1765291000417,0.33205655,90587.0,90586.0,0.00111566]
[1765291000617,0.33205655,90587.0,90586.0,0.00211566]
[1765291001018,0.33205655,90587.0,90586.0,0.00111566]
[1765291001272,0.29231287,90587.0,90586.0,0.00211566]
[1765291001481,0.31003287,90587.0,90586.0,0.00211566]
[1765291001654,0.32002743,90587.0,90586.0,0.00211566]
[1765291001972,0.00161287,90587.0,90586.0,0.00011566]
[1765291002116,0.02072,90587.0,90586.0,0.0485973]
[1765291002319,0.02072,90587.0,90586.0,0.00011566]
[1765291002774,0.02372,90587.0,90586.0,0.00011566]
[1765291003118,0.02072,90587.0,90586.0,0.00011566]
[1765291003321,0.01972,90587.0,90586.0,0.00011566]
[1765291003685,0.01872,90587.0,90586.0,0.00011566]
[1765291003894,0.001,90587.0,90586.0,0.09397319]
[1765291004071,0.01772,90594.0,90593.0,0.2428556]
[1765291004503,0.0110357,90615.0,90607.0,0.01103667]
[1765291004673,0.4159638,90620.0,90611.0,0.01103618]
[1765291004674,0.42659925,90617.0,90611.0,0.01103618]
[1765291004887,0.01772,90614.0,90611.0,0.01103618]
[1765291005193,0.22094432,90618.0,90616.0,0.22071157]
[1765291005194,0.00023738,90618.0,90616.0,0.22071157]
[1765291005393,0.01772,90617.0,90616.0,0.22071157]
[1765291005556,0.01103618,90611.0,90605.0,0.01103691]
[1765291005938,0.01103618,90611.0,90594.0,0.04915234]
[1765291005939,0.22072862,90609.0,90601.0,0.0110374]
[1765291006137,0.00099999,90610.0,90607.0,0.01103667]
[1765291006339,0.00161287,90611.0,90607.0,0.01103667]
[1765291006622,0.00161287,90611.0,90606.0,0.01103679]
[1765291006623,0.01103716,90603.0,90599.0,0.01103764]
[1765291006829,0.22074937,90601.0,90597.0,0.01103789]
[1765291006988,0.02875728,90602.0,90600.0,0.22075]
[1765291006989,0.01772,90602.0,90600.0,0.22075]
[1765291007404,0.01772,90602.0,90601.0,0.07064048]
[1765291007716,0.00099999,90610.0,90609.0,0.22072862]
[1765291007879,0.01772,90610.0,90609.0,0.22072862]
[1765291008076,0.00023738,90618.0,90617.0,0.22070913]
[1765291008318,0.00023738,90618.0,90617.0,0.28912989]
[1765291008319,0.00062261,90618.0,90617.0,0.28912989]
[1765291008770,0.00062261,90618.0,90617.0,0.31121789]
[1765291009567,0.00062261,90618.0,90617.0,0.22370913]
[1765291009773,0.00062261,90618.0,90617.0,0.22070913]
[1765291010005,0.00062261,90618.0,90617.0,0.24279713]
[1765291010346,0.00062261,90618.0,90617.0,0.002]
[1765291010544,0.00223548,90618.0,90617.0,0.002]
[1765291010944,0.01103825,90594.0,90591.0,0.02950023]
[1765291011187,0.01103825,90594.0,90587.0,0.01103911]
[1765291011188,0.24952454,90594.0,90590.0,0.23181303]
[1765291011396,0.01772,90594.0,90591.0,0.23180956]
[1765291011612,0.00099999,90610.0,90609.0,0.22072862]
[1765291011805,0.02033286,90610.0,90607.0,0.01103667]
[1765291012005,0.02033286,90610.0,90608.0,0.22073074]
[1765291012239,0.01772,90609.0,90608.0,0.22073074]
[1765291012411,0.01772,90609.0,90604.0,0.01103704]
[1765291012412,0.23180669,90593.0,90590.0,0.01103874]
[1765291012640,0.22075934,90597.0,90590.0,0.01103874]
[1765291012641,0.01772,90592.0,90591.0,0.01103862]
[1765291013285,0.01772,90592.0,90590.0,0.2318132]
[1765291013286,0.01772,90592.0,90590.0,0.22077334]
[1765291013483,0.01772,90592.0,90587.0,0.22078178]
[1765291013484,0.01772,90600.0,90599.0,0.022088]
[1765291013693,0.02875752,90600.0,90597.0,0.01103789]
[1765291013892,0.01103764,90599.0,90594.0,0.01103825]
[1765291014205,0.23340418,90599.0,90596.0,0.23179784]
[1765291014401,0.23340418,90599.0,90590.0,0.22077369]
[1765291014402,0.01103838,90593.0,90587.0,0.22078185]
[1765291014613,0.0110385,90592.0,90590.0,0.003]
[1765291014811,0.23179856,90596.0,90593.0,0.23180558]
[1765291015058,0.23179856,90596.0,90592.0,0.23180776]
[1765291015235,0.23179865,90596.0,90594.0,0.001]
[1765291015435,0.00161287,90599.0,90598.0,0.22075542]
[1765291015642,0.4266001,90610.0,90598.0,0.22075542]
[1765291015643,0.2907,90609.0,90607.0,0.22073349]
[1765291015951,0.4155638,90610.0,90605.0,0.01103691]
[1765291015952,0.01772,90608.0,90605.0,0.01103691]
[1765291016129,0.01772,90608.0,90601.0,0.0110374]
[1765291016130,0.23177816,90604.0,90601.0,0.0110374]
[1765291016341,0.23177816,90604.0,90599.0,0.01103764]
[1765291016342,0.22074427,90603.0,90599.0,0.01103764]
[1765291016541,0.0110374,90601.0,90595.0,0.01103813]
[1765291016742,0.23178807,90600.0,90597.0,0.22075635]
[1765291016943,0.23845321,90608.0,90599.0,0.01103764]
[1765291016944,0.23178098,90603.0,90599.0,0.01103764]
[1765291017142,0.01103728,90602.0,90597.0,0.01103789]
[1765291017344,0.01103874,90590.0,90584.0,0.01103947]
[1765291017568,0.01772,90590.0,90588.0,0.22077946]
[1765291018378,0.01103728,90602.0,90597.0,0.01103789]
[1765291018576,0.4159638,90640.0,90588.0,0.22077942]
[1765291018577,0.22077004,90592.0,90588.0,0.22077942]
[1765291018894,0.01772,90591.0,90590.0,0.23181365]
[1765291019325,0.01772,90591.0,90590.0,0.25390165]
[1765291019478,0.02875862,90591.0,90588.0,0.005]
[1765291020059,0.01772,90591.0,90588.0,0.01403898]
[1765291020265,0.01772,90591.0,90587.0,0.22078093]
[1765291020465,0.01772,90591.0,90588.0,0.001]
[1765291020647,0.22077735,90589.0,90588.0,0.003]
[1765291020853,0.22077735,90589.0,90588.0,0.002]
[1765291020854,0.51309022,90589.0,90588.0,0.002]
[1765291021150,0.51309022,90589.0,90552.0,0.07879586]
[1765291021151,0.01104154,90567.0,90562.0,0.01104215]
[1765291021388,0.01204117,90570.0,90564.0,0.2208374]
[1765291021389,0.01772,90566.0,90564.0,0.2208374]
[1765291021595,0.01772,90566.0,90555.0,0.0394948]
[1765291021596,0.2907,90579.0,90575.0,0.01104057]
[1765291021795,0.2907,90579.0,90569.0,0.0110413]
[1765291021796,0.22081993,90572.0,90569.0,0.25395384]
[1765291022043,0.29231287,90579.0,90566.0,0.22083286]
[1765291022044,0.00161287,90579.0,90576.0,0.01104045]
[1765291022216,0.00161287,90579.0,90578.0,0.22080416]
[1765291022574,0.00161287,90579.0,90577.0,0.2208066]
[1765291022575,0.01933287,90579.0,90577.0,0.2208066]
[1765291022820,0.01933287,90579.0,90565.0,0.02950023]
[1765291022821,0.01933287,90579.0,90572.0,0.03312893]
[1765291023028,0.01933287,90579.0,90561.0,0.04054251]
[1765291023029,0.01104179,90565.0,90561.0,0.04054251]
[1765291023200,0.01104179,90565.0,90556.0,0.03915777]
[1765291023201,0.01772,90564.0,90563.0,0.01104203]
[1765291023364,0.01104057,90575.0,90563.0,0.01104203]
[1765291023365,0.2907,90577.0,90576.0,0.22080904]
[1765291023564,0.002,90589.0,90576.0,0.01104045]
[1765291023780,0.002,90589.0,90552.0,0.05884681]
[1765291023781,0.22079498,90582.0,90579.0,0.01104008]
[1765291023982,0.01103935,90585.0,90581.0,0.01103984]
[1765291024185,0.01103935,90585.0,90581.0,0.03864088]
[1765291024387,0.23183185,90583.0,90579.0,0.01104008]
[1765291024588,0.01772,90588.0,90583.0,0.01103959]
[1765291024803,0.22079847,90581.0,90579.0,0.00011566]
[1765291025416,0.23283688,90582.0,90579.0,0.00011566]
[1765291025417,0.01772,90580.0,90579.0,0.00011566]
[1765291026494,0.30842,90580.0,90579.0,0.00011566]
[1765291027364,0.30942,90580.0,90579.0,0.00011566]
[1765291027803,0.30842,90580.0,90579.0,0.00011566]
[1765291028004,0.30842,90580.0,90554.0,0.01104313]
[1765291028005,0.22087,90551.0,90550.0,0.5]
[1765291028323,0.01104252,90559.0,90550.0,0.5]
[1765291028324,0.01104252,90559.0,90552.0,0.01104337]
[1765291028528,0.01104301,90555.0,90550.0,0.5]
[1765291028731,0.22086986,90552.0,90550.0,0.5]
[1765291029286,0.2907,90551.0,90550.0,0.5]
[1765291029638,0.31272368,90551.0,90550.0,0.5]
[1765291029847,1.19676768,90551.0,90550.0,0.5]
[1765291030038,0.95667468,90551.0,90550.0,0.5]
[1765291030247,0.95667468,90551.0,90550.0,0.506]
[1765291030483,0.95767468,90551.0,90550.0,0.506]
[1765291030684,0.96067468,90551.0,90550.0,0.5]
[1765291030886,0.96067468,90551.0,90550.0,0.551]
[1765291030887,0.2947,90551.0,90550.0,0.551]
[1765291031090,0.31542,90551.0,90550.0,0.501]
[1765291031409,0.2907,90569.0,90555.0,0.01104301]
[1765291031579,0.25,90590.0,90555.0,0.01104301]
[1765291031580,0.01103886,90589.0,90557.0,0.22085422]
[1765291031803,0.02960662,90617.0,90554.0,0.01104313]
[1765291031804,0.22076482,90595.0,90592.0,0.22077004]
[1765291031987,0.22076482,90595.0,90593.0,0.24394644]
[1765291031988,0.0001156,90595.0,90593.0,0.24394644]
[1765291032190,0.0001156,90595.0,90588.0,0.25390569]
[1765291032191,0.30842,90594.0,90588.0,0.25390569]
[1765291032404,0.30842,90594.0,90590.0,0.01103874]
[1765291032405,0.01772,90594.0,90590.0,0.01103874]
[1765291032605,0.01772,90594.0,90586.0,0.01103923]
[1765291032606,0.22077492,90590.0,90587.0,0.23182071]
[1765291032772,0.01772,90594.0,90587.0,0.05961132]
[1765291032973,0.01103911,90587.0,90579.0,0.022088]
[1765291033197,0.01103911,90587.0,90574.0,0.01104069]
[1765291033198,0.00099999,90580.0,90574.0,0.01104069]
[1765291033405,0.01104045,90576.0,90573.0,0.01104081]
[1765291033608,0.01104057,90575.0,90572.0,0.01104093]
[1765291033808,0.01104045,90576.0,90573.0,0.01104081]
[1765291034014,0.0110402,90578.0,90572.0,0.23185972]
[1765291034213,0.01772,90579.0,90576.0,0.2318471]
[1765291034415,0.01508811,90585.0,90576.0,0.2318471]
[1765291034416,0.2907,90591.0,90586.0,0.22078466]
[1765291034616,0.01772,90587.0,90586.0,0.23182389]
[1765291034825,0.01115373,90595.0,90591.0,0.22077187]
[1765291035031,0.01115373,90595.0,90586.0,0.23182225]
[1765291035032,0.2318142,90590.0,90584.0,0.03312747]
[1765291035232,0.01772,90594.0,90589.0,0.01103886]
[1765291035507,0.01772,90594.0,90592.0,0.22076817]
[1765291035635,0.01772,90594.0,90593.0,0.022088]
[1765291036082,0.01772,90594.0,90591.0,0.2318111]
[1765291036301,0.01772,90594.0,90590.0,0.24286225]
[1765291036302,0.01103838,90593.0,90590.0,0.24286225]
[1765291036435,0.01203873,90590.0,90586.0,0.022088]
[1765291036634,0.22077735,90589.0,90586.0,0.022088]
[1765291036838,0.23181662,90589.0,90586.0,0.022088]
[1765291037276,0.23181662,90589.0,90580.0,0.01103996]
[1765291037277,0.01103923,90586.0,90580.0,0.01103996]
[1765291037480,0.01103923,90586.0,90578.0,0.0110402]
[1765291037481,0.00161287,90589.0,90578.0,0.0110402]
[1765291037657,0.00161287,90589.0,90586.0,0.01103923]
[1765291037968,0.22078004,90588.0,90586.0,0.01103923]
[1765291038161,0.23343015,90589.0,90587.0,0.04967729]
[1765291038408,0.01103898,90588.0,90583.0,0.01103959]
[1765291038614,0.01265173,90589.0,90587.0,0.22078082]
[1765291038615,0.00161287,90589.0,90587.0,0.22078082]
[1765291038753,0.00161287,90589.0,90586.0,0.01103923]
[1765291038754,0.0001156,90595.0,90594.0,0.22076517]
[1765291038939,0.0178356,90595.0,90594.0,0.24285317]
[1765291039895,0.0110385,90592.0,90591.0,0.022088]
[1765291040135,0.0110385,90592.0,90591.0,0.00552056]
[1765291040328,0.0178356,90595.0,90594.0,0.22076517]
[1765291040482,0.0178356,90595.0,90594.0,0.22176517]
[1765291040682,0.0178356,90595.0,90594.0,0.24385317]
[1765291041030,0.0178356,90595.0,90594.0,0.33733363]
[1765291041031,0.0001156,90595.0,90594.0,0.33733363]
[1765291041633,0.0001156,90595.0,90594.0,0.74739439]
[1765291041789,0.0001156,90595.0,90594.0,0.70823662]
[1765291042196,0.0001156,90595.0,90594.0,0.76912818]
[1765291043092,0.0001156,90595.0,90594.0,0.77512818]
[1765291043296,0.0001156,90595.0,90594.0,0.71423662]
[1765291043926,0.0001156,90595.0,90594.0,0.70823662]
[1765291044120,0.0001156,90595.0,90594.0,0.71223662]
[1765291044324,0.0001156,90595.0,90594.0,0.71823662]
[1765291044885,0.0001156,90595.0,90594.0,0.83797499]
[1765291045093,0.0001156,90595.0,90594.0,0.77912818]
[1765291045287,0.0004,90620.0,90617.0,0.22070913]
[1765291045489,0.00062254,90618.0,90617.0,0.28914671]
[1765291046318,0.00062254,90618.0,90617.0,0.3516697]
[1765291046537,0.00062254,90618.0,90617.0,0.6453697]
[1765291046755,0.00062254,90618.0,90617.0,0.6473697]
[1765291047113,0.00062254,90618.0,90617.0,0.67678711]
[1765291047337,0.00062254,90618.0,90617.0,0.67678244]
[1765291047539,0.00062254,90618.0,90617.0,0.6473697]
[1765291047745,0.00223541,90618.0,90617.0,0.005]
[1765291048547,0.00223541,90618.0,90617.0,0.025088]
[1765291048748,0.00223541,90618.0,90617.0,0.003]
[1765291048964,0.00223541,90618.0,90616.0,0.22071125]
[1765291049166,0.00223541,90618.0,90617.0,0.07173329]
[1765291049365,0.00223541,90618.0,90617.0,0.08172786]
[1765291049577,0.00062254,90618.0,90617.0,0.09382129]
[1765291049798,0.00062254,90618.0,90617.0,0.022088]
[1765291050490,0.00062254,90618.0,90617.0,0.023088]
[1765291050654,0.00062254,90618.0,90617.0,0.03749218]
[1765291051055,0.00062254,90618.0,90617.0,0.03649218]
[1765291051658,0.00062254,90618.0,90617.0,0.32609102]
[1765291051865,0.00062254,90618.0,90617.0,0.42429562]
[1765291052243,0.00062254,90618.0,90617.0,0.001]
[1765291052444,0.00062254,90618.0,90617.0,0.01330813]
[1765291052640,0.00062254,90618.0,90617.0,0.01441191]
[1765291052849,0.00062254,90618.0,90617.0,0.02540648]
[1765291053047,0.00062254,90618.0,90617.0,0.02440648]
[1765291053286,0.00062254,90618.0,90617.0,0.12044274]
[1765291053703,0.00062254,90618.0,90617.0,0.6973799]
[1765291053902,0.00062254,90618.0,90617.0,0.68296295]
[1765291054569,0.00062254,90618.0,90617.0,0.68096295]
[1765291054967,0.00062254,90618.0,90617.0,0.69964295]
[1765291055396,0.00062254,90618.0,90617.0,0.69564295]
[1765291055597,0.0004,90620.0,90619.0,0.58392182]
[1765291055924,0.0004,90620.0,90619.0,0.65266305]
[1765291056129,0.0004,90630.0,90629.0,0.5959909]
[1765291056410,0.0004,90640.0,90639.0,0.58387312]
[1765291056614,0.0005155,90640.0,90639.0,0.58387312]
[1765291056769,0.0005155,90640.0,90639.0,0.61321115]
[1765291056984,0.0005155,90640.0,90639.0,0.77365953]
[1765291057185,0.0005155,90640.0,90639.0,0.7443215]
[1765291057412,0.0005155,90640.0,90639.0,0.7620015]
[1765291058338,0.0005155,90640.0,90639.0,0.79130764]
[1765291059065,0.0005155,90640.0,90639.0,0.79530764]
[1765291059273,0.0005155,90640.0,90639.0,0.7660015]
[1765291059480,0.0005155,90640.0,90639.0,0.7620015]
[1765291059619,0.0005155,90640.0,90639.0,0.7660015]
[1765291060045,1e-08,90640.0,90639.0,0.7660015]
[1765291060355,9e-05,90658.0,90649.0,0.30524221]
[1765291060567,9e-05,90658.0,90649.0,0.36628947]
[1765291061931,9e-05,90658.0,90649.0,0.38396947]
[1765291062132,9e-05,90658.0,90649.0,0.38796947]
[1765291062338,0.00134912,90650.0,90649.0,0.41732554]
[1765291062539,0.00234912,90650.0,90649.0,0.39596947]
[1765291063177,0.00134912,90650.0,90649.0,0.38796947]
[1765291063376,0.00134912,90650.0,90649.0,0.24671922]
[1765291063601,0.00134912,90650.0,90649.0,0.54541922]
[1765291063602,0.00234912,90650.0,90649.0,0.54541922]
[1765291063801,0.00134912,90650.0,90649.0,0.53741922]
[1765291064367,0.00234912,90650.0,90649.0,0.54541922]
[1765291064980,0.00234912,90650.0,90649.0,0.54141922]
[1765291065167,0.00234912,90650.0,90649.0,0.012]
[1765291065405,0.00234912,90650.0,90649.0,0.004]
[1765291065406,0.00296199,90650.0,90649.0,0.004]
[1765291065872,0.23462221,90650.0,90649.0,0.004]
[1765291066017,0.23462221,90650.0,90649.0,0.003]
[1765291066474,0.00296199,90650.0,90649.0,0.007]
[1765291066674,0.00296199,90650.0,90649.0,0.004]
[1765291066975,0.00296199,90650.0,90649.0,0.006]
[1765291067738,0.22359078,90650.0,90649.0,0.006]
[1765291068138,0.00296199,90650.0,90649.0,0.006]
[1765291068619,0.00296199,90650.0,90649.0,0.22663122]
[1765291068808,0.00134912,90650.0,90649.0,0.24871922]
[1765291068958,0.00134912,90650.0,90649.0,0.34309265]
[1765291070215,0.00134912,90650.0,90649.0,0.33099922]
[1765291070862,0.00134912,90650.0,90649.0,0.22663122]
[1765291071654,0.00134912,90650.0,90649.0,0.006]
[1765291071856,0.00134912,90650.0,90649.0,0.22663122]
[1765291072067,0.00134912,90650.0,90649.0,0.006]
[1765291072206,0.00134912,90650.0,90649.0,0.22663122]
[1765291072411,0.00134912,90650.0,90649.0,0.27797947]
[1765291073360,0.00134912,90650.0,90649.0,0.30006747]
[1765291074375,0.00134912,90650.0,90649.0,0.05734825]
[1765291074544,0.00134912,90650.0,90649.0,0.006]
[1765291075331,0.00134912,90650.0,90649.0,0.22663122]
[1765291075955,0.22197791,90650.0,90649.0,0.006]
[1765291076156,0.00134912,90650.0,90649.0,0.25591704]
[1765291076430,0.00134912,90650.0,90649.0,0.03528582]
[1765291076665,0.00134912,90650.0,90649.0,0.25591704]
[1765291076867,0.00134912,90650.0,90649.0,0.03528582]
[1765291076868,0.22197791,90650.0,90649.0,0.03528582]
[1765291077078,0.22359078,90650.0,90649.0,0.006]
[1765291077708,0.00296199,90650.0,90649.0,0.006]
[1765291077974,0.00296199,90650.0,90649.0,0.22663122]
[1765291079500,0.00134912,90650.0,90649.0,0.22663122]
[1765291079702,0.00134912,90650.0,90649.0,0.24871922]
[1765291079881,0.00134912,90650.0,90649.0,0.34529926]
[1765291080286,0.00134912,90650.0,90649.0,0.37480215]
[1765291080455,0.00134912,90650.0,90649.0,0.34529926]
[1765291082378,0.00134912,90650.0,90649.0,0.12466804]
[1765291082583,0.00134912,90650.0,90649.0,0.006]
[1765291082584,0.22359078,90650.0,90649.0,0.006]
[1765291082823,0.00134912,90650.0,90649.0,0.006]
[1765291083521,0.00134912,90650.0,90649.0,0.03558116]
[1765291083928,0.00134912,90650.0,90649.0,0.004]
[1765291084173,0.00134912,90650.0,90649.0,0.03358116]
[1765291084327,0.00496199,90650.0,90649.0,0.004]
[1765291084874,0.30398102,90650.0,90649.0,0.004]
[1765291085096,0.01103338,90634.0,90629.0,0.01103399]
[1765291085426,0.01103302,90637.0,90629.0,0.01103399]
[1765291085427,0.01764,90636.0,90633.0,0.0110335]
[1765291085643,0.01764,90636.0,90634.0,0.2206668]
[1765291085769,0.01764,90636.0,90630.0,0.01103387]
[1765291085770,0.00201287,90650.0,90649.0,0.001]
[1765291085987,0.01965287,90650.0,90649.0,0.001]
[1765291086185,0.01965287,90650.0,90647.0,0.23166657]
[1765291086387,0.01103156,90649.0,90641.0,0.23168247]
[1765291086616,0.22064504,90644.0,90642.0,0.04844046]
[1765291086856,0.02065286,90650.0,90630.0,0.04061503]
[1765291086857,0.01103338,90634.0,90630.0,0.04061503]
[1765291086985,0.22066401,90636.0,90631.0,0.22067292]
[1765291087170,0.01103326,90635.0,90630.0,0.01103387]
[1765291087373,0.01103326,90635.0,90629.0,0.23182805]
[1765291087374,0.22067317,90632.0,90629.0,0.01114949]
[1765291087607,0.22067317,90632.0,90630.0,0.05152216]
[1765291087608,0.2317068,90632.0,90630.0,0.05152216]
[1765291089139,0.22067747,90630.0,90629.0,0.0011155]